[Event "Championnat d'Europe Rapide"]
[Date "2024.12.07"]
[White "Vuckovic, Zarko"]
[Black "Shapkaroski, Goce"]
[WhiteElo "2334"]
[BlackElo "2137"]
[Round "5.49"]
[Result "1-0"]
[TimeControl "900+10"]

1. e4 {[%emt 00:00:01] [%clk 00:15:19]} e5 {[%emt 00:00:10] [%clk 00:15:12]} 2.
Nf3 {[%clk 00:15:27]} Nc6 {[%clk 00:15:21]} 3. Bc4 {[%emt 00:00:01] [%clk
00:15:35]} Nf6 {[%emt 00:00:05] [%clk 00:15:27]} 4. d3 {[%emt 00:00:01] [%clk
00:15:44]} Bc5 {[%emt 00:00:01] [%clk 00:15:35]} 5. O-O {[%emt 00:00:02] [%clk
00:15:52]} d6 {[%emt 00:00:04] [%clk 00:15:41]} 6. c3 {[%emt 00:00:02] [%clk
00:16:00]} a5 {[%emt 00:00:01] [%clk 00:15:50]} 7. Re1 {[%emt 00:00:02] [%clk
00:16:08]} Ba7 {[%emt 00:00:02] [%clk 00:15:59]} 8. Nbd2 {[%emt 00:00:02] [%clk
00:16:15]} O-O {[%emt 00:00:04] [%clk 00:16:06]} 9. h3 {[%emt 00:00:35] [%clk
00:15:50]} Be6 {[%emt 00:00:11] [%clk 00:16:05]} 10. Bb5 {[%emt 00:00:02] [%clk
00:15:58]} Ne7 {[%emt 00:00:36] [%clk 00:15:39]} 11. d4 {[%emt 00:00:02] [%clk
00:16:06]} c6 {[%emt 00:00:34] [%clk 00:15:15]} 12. Bf1 {[%emt 00:00:10] [%clk
00:16:06]} Ng6 {[%emt 00:00:03] [%clk 00:15:22]} 13. b3 {[%emt 00:00:21] [%clk
00:15:55]} h6 {[%emt 00:00:16] [%clk 00:15:15]} 14. Bb2 {[%emt 00:00:06] [%clk
00:15:59]} Qc7 {[%emt 00:03:17] [%clk 00:12:09]} 15. c4 {[%emt 00:00:04] [%clk
00:16:05]} exd4 {[%emt 00:01:35] [%clk 00:10:44]} 16. Nxd4 {[%emt 00:00:10]
[%clk 00:16:05]} Rae8 {[%emt 00:00:41] [%clk 00:10:12]} 17. N2f3 {[%emt
00:04:13] [%clk 00:12:03]} Bc8 {[%emt 00:00:55] [%clk 00:09:27]} 18. Qc2 {[%emt
00:00:01] [%clk 00:12:11]} Nd7 {[%emt 00:01:28] [%clk 00:08:10]} 19. Nf5 {[%emt
00:01:40] [%clk 00:10:39]} Nde5 {[%emt 00:00:28] [%clk 00:07:54]} 20. N3d4
{[%emt 00:00:05] [%clk 00:10:44]} Nf4 {[%emt 00:01:16] [%clk 00:06:48]} 21. Rad1
{[%emt 00:01:20] [%clk 00:09:33]} Ne6 {[%emt 00:00:34] [%clk 00:06:25]} 22. Nxe6
{[%emt 00:00:09] [%clk 00:09:34]} Rxe6 {[%emt 00:00:09] [%clk 00:06:26]} 23. Kh1
{[%emt 00:00:20] [%clk 00:09:22]} f6 {[%emt 00:01:57] [%clk 00:04:40]} 24. g3
{[%emt 00:01:10] [%clk 00:08:22]} Nf3 {[%emt 00:01:57] [%clk 00:02:54]} 25. Re2
{[%emt 00:00:06] [%clk 00:08:24]} Bc5 {[%emt 00:00:05] [%clk 00:03:01]} 26. Bg2
{[%emt 00:00:13] [%clk 00:08:21]} Ne5 {[%emt 00:00:24] [%clk 00:02:47]} 27. f4
{[%emt 00:00:21] [%clk 00:08:09]} Nf7 {[%emt 00:00:02] [%clk 00:02:56]} 28. Nh4
{[%emt 00:00:17] [%clk 00:08:02]} Rfe8 {[%emt 00:00:22] [%clk 00:02:44]} 29. a3
{[%emt 00:00:40] [%clk 00:07:31]} b5 {[%emt 00:01:21] [%clk 00:01:34]} 30. b4
{[%emt 00:03:04] [%clk 00:04:37]} axb4 {[%emt 00:00:08] [%clk 00:01:36]} 31.
axb4 {[%clk 00:04:46]} Bxb4 {[%emt 00:00:24] [%clk 00:01:22]} 32. cxb5 {[%emt
00:00:01] [%clk 00:04:54]} c5 {[%emt 00:00:13] [%clk 00:01:20]} 33. Bc3 {[%emt
00:01:06] [%clk 00:03:58]} Bxc3 {[%emt 00:00:17] [%clk 00:01:12]} 34. Qxc3
{[%clk 00:04:07]} Bb7 {[%emt 00:00:06] [%clk 00:01:18]} 35. Rde1 {[%emt
00:00:28] [%clk 00:03:48]} d5 {[%emt 00:00:12] [%clk 00:01:16]} 36. Rc2 {[%emt
00:00:37] [%clk 00:03:21]} c4 {[%emt 00:00:33] [%clk 00:00:53]} 37. f5 {[%emt
00:00:24] [%clk 00:03:07]} Re5 {[%emt 00:00:15] [%clk 00:00:47]} 38. Ng6 {[%emt
00:00:04] [%clk 00:03:14]} d4 {[%emt 00:00:30] [%clk 00:00:28]} 39. Qxd4 {[%emt
00:00:09] [%clk 00:03:14]} Rxb5 {[%emt 00:00:01] [%clk 00:00:37]} 40. Rxc4
{[%emt 00:00:01] [%clk 00:03:23]} Qxg3 {[%emt 00:00:06] [%clk 00:00:41]} 41. Rg1
{[%emt 00:01:10] [%clk 00:02:23]} Ba8 {[%emt 00:00:33] [%clk 00:00:18]} 42. Qd7
{[%emt 00:00:14] [%clk 00:02:19]} Rbb8 {[%emt 00:00:02] [%clk 00:00:26]} 43. Rc7
{[%emt 00:00:03] [%clk 00:02:26]} Qb3 {[%emt 00:00:04] [%clk 00:00:31]} 44. Ne7+
{[%emt 00:00:51] [%clk 00:01:46]} Kf8 {[%emt 00:00:16] [%clk 00:00:25]} 45. Ng6+
{[%emt 00:00:22] [%clk 00:01:34]} Kg8 {[%clk 00:00:35]} 46. Ne7+ {[%clk
00:01:43]} Kf8 {[%clk 00:00:44]} 47. Nd5 {[%clk 00:01:53]} Bxd5 {[%emt 00:00:38]
[%clk 00:00:17]} 48. exd5 {[%emt 00:00:02] [%clk 00:02:00]} 1-0

[Site "Europe Echecs"]

[Event "Championnat d'Europe Rapide"]
[Date "2024.12.07"]
[White "Koelle, Tobias"]
[Black "Nikolovski, David"]
[WhiteElo "2437"]
[BlackElo "1941"]
[Round "5.50"]
[Result "1-0"]
[TimeControl "900+10"]

1. d4 {[%emt 00:00:01] [%clk 00:15:18]} Nf6 {[%emt 00:00:03] [%clk 00:15:18]} 2.
Nf3 {[%emt 00:00:01] [%clk 00:15:26]} c6 {[%emt 00:00:03] [%clk 00:15:26]} 3. c4
{[%emt 00:00:10] [%clk 00:15:26]} d5 {[%emt 00:00:01] [%clk 00:15:35]} 4. Qc2
{[%emt 00:00:02] [%clk 00:15:34]} dxc4 {[%emt 00:00:12] [%clk 00:15:33]} 5. Qxc4
{[%emt 00:00:02] [%clk 00:15:41]} Bf5 {[%emt 00:00:04] [%clk 00:15:39]} 6. g3
{[%emt 00:00:04] [%clk 00:15:46]} e6 {[%emt 00:00:03] [%clk 00:15:47]} 7. Bg2
{[%emt 00:00:02] [%clk 00:15:55]} Be7 {[%emt 00:00:07] [%clk 00:15:50]} 8. O-O
{[%emt 00:00:03] [%clk 00:16:01]} Nbd7 {[%emt 00:00:03] [%clk 00:15:57]} 9. Qb3
{[%emt 00:00:12] [%clk 00:16:00]} Qb6 {[%emt 00:00:02] [%clk 00:16:05]} 10. Nbd2
{[%emt 00:00:04] [%clk 00:16:05]} O-O {[%emt 00:01:08] [%clk 00:15:07]} 11. Nc4
{[%emt 00:00:13] [%clk 00:16:01]} Qxb3 {[%emt 00:00:09] [%clk 00:15:10]} 12.
axb3 {[%emt 00:00:02] [%clk 00:16:08]} Be4 {[%emt 00:00:11] [%clk 00:15:09]} 13.
Bf4 {[%emt 00:07:05] [%clk 00:09:14]} Bd5 {[%emt 00:04:54] [%clk 00:10:25]} 14.
Nfd2 {[%emt 00:01:09] [%clk 00:08:13]} Bxg2 {[%emt 00:00:06] [%clk 00:10:32]}
15. Kxg2 {[%emt 00:00:01] [%clk 00:08:21]} c5 {[%emt 00:01:29] [%clk 00:09:12]}
16. dxc5 {[%emt 00:00:11] [%clk 00:08:20]} Nxc5 {[%emt 00:00:14] [%clk
00:09:09]} 17. b4 {[%emt 00:00:14] [%clk 00:08:15]} Nce4 {[%emt 00:00:07] [%clk
00:09:12]} 18. Nxe4 {[%emt 00:00:15] [%clk 00:08:10]} Nxe4 {[%emt 00:00:02]
[%clk 00:09:21]} 19. b5 {[%emt 00:00:14] [%clk 00:08:05]} Rfc8 {[%emt 00:00:17]
[%clk 00:09:14]} 20. Rfc1 {[%emt 00:00:34] [%clk 00:07:41]} h6 {[%emt 00:01:28]
[%clk 00:07:56]} 21. Na5 {[%emt 00:01:58] [%clk 00:05:52]} Bf6 {[%emt 00:06:18]
[%clk 00:01:50]} 22. Rxc8+ {[%emt 00:00:55] [%clk 00:05:07]} Rxc8 {[%clk
00:01:59]} 23. Nxb7 {[%emt 00:00:01] [%clk 00:05:15]} Bxb2 {[%emt 00:00:26]
[%clk 00:01:45]} 24. Rxa7 {[%emt 00:00:02] [%clk 00:05:22]} e5 {[%emt 00:00:18]
[%clk 00:01:37]} 25. Be3 {[%emt 00:00:13] [%clk 00:05:19]} Rc2 {[%emt 00:00:02]
[%clk 00:01:46]} 26. b6 {[%emt 00:00:25] [%clk 00:05:03]} Rxe2 {[%emt 00:00:25]
[%clk 00:01:31]} 27. Kf3 {[%emt 00:00:29] [%clk 00:04:43]} Nc3 {[%emt 00:00:09]
[%clk 00:01:33]} 28. Nd6 {[%emt 00:00:03] [%clk 00:04:50]} f5 {[%emt 00:01:03]
[%clk 00:00:40]} 29. Nxf5 {[%emt 00:00:11] [%clk 00:04:48]} e4+ {[%emt 00:00:02]
[%clk 00:00:49]} 30. Kg4 {[%emt 00:00:07] [%clk 00:04:51]} Nd5 {[%emt 00:00:14]
[%clk 00:00:45]} 31. Ne7+ {[%emt 00:00:17] [%clk 00:04:44]} Kh7 {[%emt 00:00:06]
[%clk 00:00:49]} 32. Nxd5 {[%emt 00:00:02] [%clk 00:04:52]} 1-0

[Site "Europe Echecs"]

[Event "Championnat d'Europe Rapide"]
[Date "2024.12.07"]
[White "Goncalves, Lucas Jordao"]
[Black "Pancevski, Filip"]
[WhiteElo "1990"]
[BlackElo "2420"]
[Round "5.51"]
[Result "0-1"]
[TimeControl "900+10"]

1. e4 {[%emt 00:00:05] [%clk 00:15:16]} d6 {[%emt 00:00:02] [%clk 00:15:18]} 2.
Nf3 {[%emt 00:00:09] [%clk 00:15:16]} Nf6 {[%emt 00:00:02] [%clk 00:15:27]} 3.
Nc3 {[%emt 00:00:03] [%clk 00:15:23]} e5 {[%emt 00:00:01] [%clk 00:15:36]} 4. d4
{[%emt 00:00:10] [%clk 00:15:23]} Nbd7 {[%emt 00:00:02] [%clk 00:15:44]} 5. h3
{[%emt 00:00:20] [%clk 00:15:14]} c6 {[%emt 00:00:06] [%clk 00:15:48]} 6. Bc4
{[%emt 00:00:12] [%clk 00:15:11]} Be7 {[%emt 00:00:02] [%clk 00:15:56]} 7. O-O
{[%emt 00:00:37] [%clk 00:14:42]} O-O {[%emt 00:00:04] [%clk 00:16:03]} 8. Bb3
{[%emt 00:00:22] [%clk 00:14:30]} b5 {[%emt 00:00:13] [%clk 00:16:00]} 9. a3
{[%emt 00:00:08] [%clk 00:14:33]} a6 {[%emt 00:00:24] [%clk 00:15:46]} 10. Bg5
{[%emt 00:01:07] [%clk 00:13:34]} Qc7 {[%emt 00:00:15] [%clk 00:15:43]} 11. Qe2
{[%emt 00:01:24] [%clk 00:12:19]} Re8 {[%emt 00:00:06] [%clk 00:15:48]} 12. dxe5
{[%emt 00:00:16] [%clk 00:12:13]} dxe5 {[%emt 00:00:09] [%clk 00:15:49]} 13.
Rad1 {[%emt 00:00:08] [%clk 00:12:14]} a5 {[%emt 00:01:01] [%clk 00:14:59]} 14.
Nb1 {[%emt 00:00:44] [%clk 00:11:40]} Ba6 {[%emt 00:02:00] [%clk 00:13:09]} 15.
Rfe1 {[%emt 00:00:30] [%clk 00:11:19]} Nc5 {[%emt 00:03:52] [%clk 00:09:27]} 16.
Nbd2 {[%emt 00:01:22] [%clk 00:10:07]} Rab8 {[%emt 00:02:07] [%clk 00:07:31]}
17. Qe3 {[%emt 00:00:50] [%clk 00:09:27]} Ncd7 {[%emt 00:00:22] [%clk 00:07:19]}
18. Bxf6 {[%emt 00:00:50] [%clk 00:08:47]} Bxf6 {[%emt 00:00:48] [%clk
00:06:41]} 19. Nf1 {[%emt 00:00:20] [%clk 00:08:37]} Nf8 {[%emt 00:00:28] [%clk
00:06:23]} 20. Ng3 {[%emt 00:00:49] [%clk 00:07:57]} g6 {[%emt 00:00:08] [%clk
00:06:26]} 21. Rd2 {[%emt 00:01:00] [%clk 00:07:07]} Rbd8 {[%emt 00:00:58] [%clk
00:05:38]} 22. Red1 {[%emt 00:00:30] [%clk 00:06:47]} Rxd2 {[%emt 00:00:03]
[%clk 00:05:45]} 23. Rxd2 {[%emt 00:00:01] [%clk 00:06:56]} Ne6 {[%emt 00:00:42]
[%clk 00:05:14]} 24. h4 {[%emt 00:01:00] [%clk 00:06:05]} Nd4 {[%emt 00:01:13]
[%clk 00:04:10]} 25. Ba2 {[%emt 00:04:22] [%clk 00:01:54]} Bc8 {[%emt 00:00:49]
[%clk 00:03:32]} 26. h5 {[%emt 00:00:18] [%clk 00:01:45]} Qe7 {[%emt 00:02:29]
[%clk 00:01:13]} 27. hxg6 {[%emt 00:00:11] [%clk 00:01:45]} hxg6 {[%emt
00:00:01] [%clk 00:01:22]} 28. c3 {[%emt 00:01:41] [%clk 00:00:13]} Nxf3+ {[%emt
00:00:26] [%clk 00:01:06]} 29. Qxf3 {[%emt 00:00:02] [%clk 00:00:21]} Kg7 {[%emt
00:00:07] [%clk 00:01:09]} 30. Qd1 {[%emt 00:00:15] [%clk 00:00:15]} Qc5 {[%emt
00:00:35] [%clk 00:00:44]} 31. Rd3 {[%emt 00:00:13] [%clk 00:00:13]} Rh8 {[%emt
00:00:13] [%clk 00:00:41]} 32. b4 {[%emt 00:00:09] [%clk 00:00:14]} axb4 {[%emt
00:00:25] [%clk 00:00:26]} 33. cxb4 {[%emt 00:00:07] [%clk 00:00:17]} Qe7 {[%emt
00:00:06] [%clk 00:00:30]} 34. Rd6 {[%emt 00:00:15] [%clk 00:00:12]} Qc7 {[%emt
00:00:26] [%clk 00:00:14]} 35. Bb3 {[%emt 00:00:09] [%clk 00:00:12]} Bg4 {[%emt
00:00:10] [%clk 00:00:15]} 36. Qd3 {[%emt 00:00:08] [%clk 00:00:14]} Be7 {[%emt
00:00:05] [%clk 00:00:21]} 37. Nf5+ {[%emt 00:00:04] [%clk 00:00:19]} Bxf5
{[%emt 00:00:08] [%clk 00:00:23]} 38. Rxc6 {[%emt 00:00:18] [%clk 00:00:11]}
Qxc6 {[%emt 00:00:04] [%clk 00:00:30]} 39. exf5 {[%emt 00:00:03] [%clk
00:00:18]} Qc1+ {[%emt 00:00:04] [%clk 00:00:36]} 0-1

[Site "Europe Echecs"]

[Event "Championnat d'Europe Rapide"]
[Date "2024.12.07"]
[White "Bognar, Csaba Dr."]
[Black "Djukic, Nikola"]
[WhiteElo "2067"]
[BlackElo "2493"]
[Round "5.52"]
[Result "0-1"]
[TimeControl "900+10"]

1. d4 {[%emt 00:00:01] [%clk 00:15:18]} Nf6 {[%emt 00:00:03] [%clk 00:15:19]} 2.
c4 {[%clk 00:15:26]} g6 {[%emt 00:00:02] [%clk 00:15:26]} 3. Nc3 {[%emt
00:00:02] [%clk 00:15:34]} Bg7 {[%emt 00:00:03] [%clk 00:15:35]} 4. e4 {[%emt
00:00:01] [%clk 00:15:42]} d6 {[%emt 00:00:01] [%clk 00:15:44]} 5. f3 {[%emt
00:00:02] [%clk 00:15:50]} O-O {[%emt 00:00:03] [%clk 00:15:50]} 6. Be3 {[%emt
00:00:01] [%clk 00:15:58]} a6 {[%emt 00:00:08] [%clk 00:15:54]} 7. Qd2 {[%emt
00:00:03] [%clk 00:16:05]} Nbd7 {[%emt 00:00:02] [%clk 00:16:02]} 8. Nge2 {[%emt
00:00:02] [%clk 00:16:12]} c5 {[%emt 00:00:05] [%clk 00:16:08]} 9. Rd1 {[%emt
00:00:10] [%clk 00:16:11]} b6 {[%emt 00:00:37] [%clk 00:15:41]} 10. Nc1 {[%emt
00:00:07] [%clk 00:16:14]} Qc7 {[%emt 00:00:49] [%clk 00:15:03]} 11. Be2 {[%emt
00:00:07] [%clk 00:16:16]} e6 {[%emt 00:00:05] [%clk 00:15:09]} 12. O-O {[%emt
00:00:06] [%clk 00:16:19]} Re8 {[%emt 00:01:04] [%clk 00:14:15]} 13. b3 {[%emt
00:00:15] [%clk 00:16:14]} Bb7 {[%emt 00:00:32] [%clk 00:13:53]} 14. Bf2 {[%emt
00:01:41] [%clk 00:14:43]} Rad8 {[%emt 00:00:30] [%clk 00:13:34]} 15. Bd3 {[%emt
00:01:26] [%clk 00:13:27]} cxd4 {[%emt 00:03:19] [%clk 00:10:25]} 16. Bxd4
{[%emt 00:00:05] [%clk 00:13:32]} d5 {[%emt 00:00:26] [%clk 00:10:09]} 17. cxd5
{[%emt 00:00:26] [%clk 00:13:14]} Ng4 {[%emt 00:01:19] [%clk 00:09:01]} 18. e5
{[%emt 00:02:32] [%clk 00:10:53]} Ngxe5 {[%emt 00:01:15] [%clk 00:07:56]} 19.
Be4 {[%emt 00:01:51] [%clk 00:09:11]} exd5 {[%emt 00:01:51] [%clk 00:06:16]} 20.
Bxd5 {[%emt 00:01:50] [%clk 00:07:30]} Nf8 {[%emt 00:01:27] [%clk 00:04:59]} 21.
Qf2 {[%emt 00:02:07] [%clk 00:05:33]} Bxd5 {[%emt 00:00:05] [%clk 00:05:04]} 22.
N1e2 {[%emt 00:02:07] [%clk 00:03:36]} Qb7 {[%emt 00:00:36] [%clk 00:04:39]} 23.
Bxb6 {[%emt 00:00:30] [%clk 00:03:16]} Rd7 {[%clk 00:04:48]} 24. Na4 {[%emt
00:00:34] [%clk 00:02:52]} Bc6 {[%emt 00:00:21] [%clk 00:04:36]} 25. Bd4 {[%emt
00:00:49] [%clk 00:02:13]} Bxa4 {[%emt 00:00:05] [%clk 00:04:41]} 0-1

[Site "Europe Echecs"]

[Event "Championnat d'Europe Rapide"]
[Date "2024.12.07"]
[White "Ciric, Pavle"]
[Black "Alienkin, Aleksander"]
[WhiteElo "2346"]
[BlackElo "2337"]
[Round "5.53"]
[Result "1/2-1/2"]
[TimeControl "900+10"]

1. Nf3 {[%clk 00:15:17]} Nf6 {[%emt 00:00:02] [%clk 00:15:17]} 2. g3 {[%emt
00:00:06] [%clk 00:15:22]} g6 {[%emt 00:00:12] [%clk 00:15:15]} 3. Bg2 {[%emt
00:00:07] [%clk 00:15:26]} Bg7 {[%clk 00:15:23]} 4. O-O {[%emt 00:00:02] [%clk
00:15:34]} O-O {[%emt 00:00:02] [%clk 00:15:32]} 5. d4 {[%emt 00:00:05] [%clk
00:15:39]} d6 {[%emt 00:00:02] [%clk 00:15:40]} 6. c4 {[%emt 00:00:02] [%clk
00:15:47]} Nbd7 {[%emt 00:00:02] [%clk 00:15:47]} 7. Nc3 {[%emt 00:00:03] [%clk
00:15:55]} e5 {[%emt 00:00:02] [%clk 00:15:55]} 8. e4 {[%emt 00:00:02] [%clk
00:16:04]} a6 {[%emt 00:00:02] [%clk 00:16:03]} 9. h3 {[%emt 00:00:10] [%clk
00:16:04]} b5 {[%emt 00:00:02] [%clk 00:16:11]} 10. Bg5 {[%emt 00:02:36] [%clk
00:13:37]} h6 {[%emt 00:02:02] [%clk 00:14:18]} 11. Bxf6 {[%emt 00:00:04] [%clk
00:13:44]} Bxf6 {[%emt 00:00:08] [%clk 00:14:20]} 12. Nd5 {[%emt 00:01:05] [%clk
00:12:50]} bxc4 {[%emt 00:02:00] [%clk 00:12:29]} 13. Nxf6+ {[%emt 00:00:25]
[%clk 00:12:35]} Qxf6 {[%emt 00:00:07] [%clk 00:12:32]} 14. dxe5 {[%emt
00:00:03] [%clk 00:12:43]} Nxe5 {[%emt 00:00:42] [%clk 00:12:00]} 15. Nxe5
{[%emt 00:00:20] [%clk 00:12:32]} Qxe5 {[%emt 00:00:10] [%clk 00:12:00]} 16. Qc1
{[%emt 00:00:30] [%clk 00:12:12]} Be6 {[%emt 00:00:38] [%clk 00:11:32]} 17. Qxh6
{[%emt 00:01:28] [%clk 00:10:54]} Rab8 {[%emt 00:02:02] [%clk 00:09:39]} 18. f4
{[%emt 00:01:27] [%clk 00:09:38]} Qg7 {[%emt 00:02:17] [%clk 00:07:31]} 19.
Qxg7+ {[%emt 00:01:06] [%clk 00:08:43]} Kxg7 {[%emt 00:00:01] [%clk 00:07:39]}
20. f5 {[%emt 00:00:03] [%clk 00:08:51]} Bd7 {[%emt 00:00:06] [%clk 00:07:43]}
21. Rf2 {[%emt 00:00:02] [%clk 00:09:00]} Rb5 {[%emt 00:01:15] [%clk 00:06:37]}
22. Rc1 {[%emt 00:02:48] [%clk 00:06:22]} gxf5 {[%emt 00:00:45] [%clk 00:06:02]}
23. Rxc4 {[%emt 00:00:22] [%clk 00:06:11]} Be6 {[%emt 00:00:38] [%clk 00:05:32]}
24. Rxc7 {[%emt 00:00:03] [%clk 00:06:19]} fxe4 {[%emt 00:00:05] [%clk
00:05:37]} 25. Bxe4 {[%emt 00:00:07] [%clk 00:06:22]} Rb6 {[%emt 00:00:53] [%clk
00:04:53]} 26. g4 {[%emt 00:00:44] [%clk 00:05:48]} Bxa2 {[%emt 00:00:39] [%clk
00:04:25]} 1/2-1/2

[Site "Europe Echecs"]

[Event "Championnat d'Europe Rapide"]
[Date "2024.12.07"]
[White "Triadu Cassa, Jordi"]
[Black "Pacher, Milan"]
[WhiteElo "2108"]
[BlackElo "2310"]
[Round "5.54"]
[Result "0-1"]
[TimeControl "900+10"]

1. e4 {[%emt 00:00:05] [%clk 00:15:17]} c6 {[%clk 00:15:18]} 2. d4 {[%emt
00:00:12] [%clk 00:15:15]} d5 {[%emt 00:00:01] [%clk 00:15:27]} 3. Nc3 {[%emt
00:00:02] [%clk 00:15:24]} dxe4 {[%emt 00:00:02] [%clk 00:15:35]} 4. Nxe4 {[%emt
00:00:02] [%clk 00:15:32]} Nf6 {[%emt 00:00:02] [%clk 00:15:43]} 5. Nxf6+ {[%emt
00:00:02] [%clk 00:15:40]} gxf6 {[%emt 00:00:03] [%clk 00:15:50]} 6. c3 {[%emt
00:00:23] [%clk 00:15:27]} Qd5 {[%emt 00:00:18] [%clk 00:15:42]} 7. Nf3 {[%emt
00:01:09] [%clk 00:14:28]} Bf5 {[%emt 00:00:07] [%clk 00:15:44]} 8. Qb3 {[%emt
00:04:08] [%clk 00:10:32]} Qxb3 {[%emt 00:00:05] [%clk 00:15:48]} 9. axb3 {[%emt
00:00:01] [%clk 00:10:41]} e6 {[%emt 00:00:04] [%clk 00:15:54]} 10. g3 {[%emt
00:00:31] [%clk 00:10:20]} Be4 {[%emt 00:00:27] [%clk 00:15:36]} 11. Bg2 {[%emt
00:00:05] [%clk 00:10:25]} c5 {[%emt 00:00:08] [%clk 00:15:38]} 12. Be3 {[%emt
00:00:15] [%clk 00:10:19]} Nd7 {[%emt 00:00:41] [%clk 00:15:08]} 13. O-O {[%emt
00:01:07] [%clk 00:09:22]} cxd4 {[%emt 00:00:12] [%clk 00:15:06]} 14. Nxd4
{[%emt 00:00:11] [%clk 00:09:22]} Bxg2 {[%emt 00:00:03] [%clk 00:15:12]} 15.
Kxg2 {[%emt 00:00:02] [%clk 00:09:31]} a6 {[%emt 00:00:20] [%clk 00:15:02]} 16.
Rfd1 {[%emt 00:00:15] [%clk 00:09:26]} Bc5 {[%emt 00:00:31] [%clk 00:14:40]} 17.
Nb5 {[%emt 00:03:39] [%clk 00:05:58]} Ke7 {[%emt 00:00:56] [%clk 00:13:54]} 18.
Bxc5+ {[%emt 00:01:11] [%clk 00:04:56]} Nxc5 {[%emt 00:00:02] [%clk 00:14:02]}
19. Nd4 {[%emt 00:00:28] [%clk 00:04:39]} h5 {[%emt 00:00:51] [%clk 00:13:20]}
20. b4 {[%emt 00:00:13] [%clk 00:04:36]} Ne4 {[%emt 00:00:07] [%clk 00:13:23]}
21. b5 {[%emt 00:00:32] [%clk 00:04:15]} a5 {[%emt 00:00:26] [%clk 00:13:07]}
22. Ra4 {[%emt 00:01:04] [%clk 00:03:21]} f5 {[%emt 00:00:29] [%clk 00:12:47]}
23. Rda1 {[%emt 00:00:32] [%clk 00:03:00]} b6 {[%emt 00:00:06] [%clk 00:12:50]}
24. Nc6+ {[%emt 00:00:35] [%clk 00:02:35]} Kf6 {[%emt 00:00:02] [%clk 00:12:58]}
25. Rd4 {[%emt 00:00:59] [%clk 00:01:47]} h4 {[%emt 00:00:23] [%clk 00:12:45]}
26. Rd7 {[%emt 00:00:54] [%clk 00:01:04]} hxg3 {[%emt 00:02:59] [%clk 00:09:55]}
27. hxg3 {[%emt 00:00:01] [%clk 00:01:12]} Rh7 {[%emt 00:00:07] [%clk 00:09:58]}
28. Rd8 {[%emt 00:00:44] [%clk 00:00:40]} Rxd8 {[%emt 00:00:22] [%clk 00:09:45]}
29. Nxd8 {[%emt 00:00:01] [%clk 00:00:49]} Ke7 {[%emt 00:00:11] [%clk 00:09:44]}
30. Rd1 {[%emt 00:00:17] [%clk 00:00:42]} Rh8 {[%emt 00:01:19] [%clk 00:08:34]}
31. Nc6+ {[%emt 00:00:03] [%clk 00:00:50]} Kf6 {[%emt 00:00:01] [%clk 00:08:43]}
32. Rd7 {[%emt 00:00:18] [%clk 00:00:42]} Nc5 {[%emt 00:00:10] [%clk 00:08:43]}
33. Rc7 {[%emt 00:00:03] [%clk 00:00:49]} Na4 {[%emt 00:00:12] [%clk 00:08:40]}
34. Rb7 {[%emt 00:00:22] [%clk 00:00:37]} Rc8 {[%emt 00:01:00] [%clk 00:07:50]}
35. b3 {[%emt 00:00:12] [%clk 00:00:36]} Nxc3 {[%emt 00:00:16] [%clk 00:07:44]}
36. Rxb6 {[%emt 00:00:01] [%clk 00:00:45]} Nxb5 {[%emt 00:00:07] [%clk
00:07:47]} 37. Rxb5 {[%emt 00:00:03] [%clk 00:00:52]} Rxc6 {[%clk 00:07:55]} 38.
Rxa5 {[%emt 00:00:07] [%clk 00:00:56]} Rb6 {[%emt 00:00:01] [%clk 00:08:04]} 39.
Ra3 {[%emt 00:00:10] [%clk 00:00:56]} Kg5 {[%emt 00:00:01] [%clk 00:08:12]} 40.
Kf3 {[%emt 00:00:06] [%clk 00:01:01]} e5 {[%emt 00:00:03] [%clk 00:08:18]} 41.
Ke2 {[%emt 00:00:26] [%clk 00:00:46]} Kg4 {[%emt 00:00:14] [%clk 00:08:14]} 42.
Ra4+ {[%emt 00:00:32] [%clk 00:00:24]} e4 {[%emt 00:00:04] [%clk 00:08:19]} 43.
Ra7 {[%emt 00:00:18] [%clk 00:00:17]} f6 {[%emt 00:00:27] [%clk 00:08:01]} 44.
Rg7+ {[%emt 00:00:15] [%clk 00:00:12]} Kh3 {[%emt 00:00:04] [%clk 00:08:08]} 45.
Rg6 {[%emt 00:00:02] [%clk 00:00:20]} Kg2 {[%emt 00:00:08] [%clk 00:08:10]} 46.
b4 {[%emt 00:00:08] [%clk 00:00:22]} Rxb4 {[%emt 00:00:04] [%clk 00:08:16]} 47.
Rxf6 {[%clk 00:00:31]} Rb2+ {[%emt 00:00:03] [%clk 00:08:23]} 48. Ke3 {[%clk
00:00:40]} Rxf2 {[%emt 00:00:02] [%clk 00:08:31]} 49. g4 {[%emt 00:00:18] [%clk
00:00:33]} Rf3+ {[%emt 00:00:05] [%clk 00:08:36]} 50. Ke2 {[%clk 00:00:42]} f4
{[%emt 00:00:37] [%clk 00:08:09]} 51. g5 {[%emt 00:00:10] [%clk 00:00:42]} Rf2+
{[%emt 00:00:20] [%clk 00:07:59]} 52. Ke1 {[%emt 00:00:06] [%clk 00:00:46]} e3
{[%emt 00:00:05] [%clk 00:08:03]} 53. g6 {[%emt 00:00:04] [%clk 00:00:53]} f3
{[%emt 00:00:02] [%clk 00:08:11]} 54. g7 {[%emt 00:00:10] [%clk 00:00:53]} Rf1#
{[%emt 00:00:01] [%clk 00:08:19]} 0-1

[Site "Europe Echecs"]